lending/lending_fUSD_20251107
["ID","MTS","AMOUNT","RATE_DAILY","PERIOD"]
[393325867,1762476631790,-305.0,0.00016674,2]
[393325868,1762476631801,-361.0,0.00016674,2]
[393325869,1762476631813,-500.0,0.00016674,2]
[393325870,1762476631824,-592.17416927,0.00016674,2]
[393325871,1762476631836,-1830.49165783,0.00016674,2]
[393325872,1762476631847,-124.3052299,0.00016674,2]
[393325873,1762476631857,-257.33364253,0.000167,2]
[393325874,1762476631867,-163.01,0.00016758,2]
[393325875,1762476631876,-375.64157914,0.000168,2]
[393325876,1762476631885,-250.0,0.00016801,2]
[393325877,1762476631895,-1213.68,0.00016808,2]
[393325878,1762476631904,-171.07018412,0.00017405,2]
[393325879,1762476631913,-1200.0,0.00017465,2]
[393325880,1762476631922,-2384.0,0.00017466,2]
[393325881,1762476631932,-300.0,0.000175,6]
[393325882,1762476631941,-300.0,0.00017502,2]
[393325883,1762476631953,-300.0,0.00017502,2]
[393325884,1762476631963,-1200.0,0.00017503,2]
[393325885,1762476631972,-300.0,0.00017503,2]
[393325886,1762476631982,-550.0,0.00017504,2]
[393325887,1762476631991,-158.45181949,0.00017504,2]
[393325888,1762476632001,-216.68938768,0.00017504,2]
[393325889,1762476632010,-379.82786191,0.00017504,2]
[393325890,1762476632019,-500.0,0.00017504,2]
[393325891,1762476632029,-500.0,0.00017504,2]
[393325892,1762476632038,-173.18401907,0.00017504,2]
[393325893,1762476632048,-500.0,0.00017504,2]
[393325894,1762476632057,-500.0,0.00017504,2]
[393325896,1762476632067,-500.0,0.00017504,2]
[393325897,1762476632076,-500.0,0.00017504,2]
[393325899,1762476632086,-500.0,0.00017504,2]
[393325902,1762476632096,-500.0,0.00017504,2]
[393325903,1762476632105,-633.24818184,0.00017504,2]
[393325904,1762476632114,-500.0,0.00017504,2]
[393325905,1762476632124,-500.0,0.00017504,2]
[393325906,1762476632141,-500.0,0.00017504,2]
[393325907,1762476632152,-500.0,0.00017504,2]
[393325908,1762476632161,-500.0,0.00017504,2]
[393325909,1762476632171,-500.0,0.00017504,2]
[393325911,1762476632180,-500.0,0.00017504,2]
[393325912,1762476632190,-500.0,0.00017504,2]
[393325913,1762476632200,-500.0,0.00017504,2]
[393325914,1762476632209,-500.0,0.00017504,2]
[393325915,1762476632219,-500.0,0.00017504,2]
[393325916,1762476632228,-500.0,0.00017504,2]
[393325917,1762476632238,-500.0,0.00017504,2]
[393325918,1762476632247,-500.0,0.00017504,2]
[393325919,1762476632256,-500.0,0.00017504,2]
[393325921,1762476632266,-500.0,0.00017504,2]
[393325923,1762476632275,-500.0,0.00017504,2]
[393325924,1762476632284,-3564.2096482,0.00017506,2]
[393325925,1762476632293,-180.02,0.00017551,2]
[393325926,1762476632303,-156.10498998,0.00017599,2]
[393325927,1762476632312,-500.0,0.00017599,2]
[393325928,1762476632321,-464.52160015,0.00017599,2]
[393325929,1762476632330,-500.0,0.00017599,2]
[393325930,1762476632339,-500.0,0.00017599,2]
[393325931,1762476632349,-159.0,0.000176,2]
[393325932,1762476632358,-159.5,0.000176,3]
[393325933,1762476632367,-477.12,0.000176,2]
[393325934,1762476632377,-477.12,0.000176,2]
[393325935,1762476632387,-477.12,0.000176,2]
[393325936,1762476632397,-477.12,0.000176,2]
[393325937,1762476632406,-158.0,0.000176,2]
[393325938,1762476632415,-158.0,0.000176,2]
[393325939,1762476632425,-700.0,0.000176,6]
[393325940,1762476632434,-477.87911524,0.00017624,2]
[393325941,1762476632443,-624.34738135,0.00017628,2]
[393325942,1762476632453,-163.01,0.00017689,2]
[393325943,1762476632463,-150.0,0.00017693,2]
[393325944,1762476632472,-1000.0,0.000177,6]
[393325945,1762476632481,-477.12,0.000177,2]
[393325946,1762476632491,-3848.471,0.00017723,2]
[393325947,1762476632500,-18592.01,0.00017728,2]
[393325948,1762476632509,-7779.69,0.00017728,2]
[393325949,1762476632522,-9999.99,0.00017728,2]
[393325950,1762476632531,-221.80400124,0.00017745,2]
[393325951,1762476632541,-893.73840764,0.00017757,2]
[393325952,1762476632551,-1000.0,0.000178,2]
[393325953,1762476632560,-4260.77550839,0.000178,2]
[393325954,1762476632570,-318.19008823,0.000178,2]
[393325955,1762476632579,-158.32311605,0.000178,2]
[393325956,1762476632589,-5903.19990064,0.000178,2]
[393325957,1762476632598,-1400.0,0.000178,6]
[393325958,1762476632608,-4260.77550832,0.00017811,2]
[393325959,1762476632617,-5903.19990056,0.00017811,2]
[393325960,1762476632627,-5031.36469,0.0001782,2]
[393325961,1762476632636,-4260.77550832,0.00017822,2]
[393325962,1762476632647,-5903.19990056,0.00017822,2]
[393325963,1762476632660,-4260.77550832,0.00017833,2]
[393325964,1762476632669,-5903.19990056,0.00017833,2]
[393325965,1762476632679,-168.0,0.00017833,2]
[393325966,1762476632689,-178.9156304,0.00017843,2]
[393325967,1762476632699,-500.0,0.00017843,2]
[393325968,1762476632709,-290.22318681,0.00017843,2]
[393325969,1762476632718,-417.90892983,0.00017843,2]
[393325970,1762476632728,-501.40785214,0.00017843,2]
[393325971,1762476632738,-4260.77550832,0.00017844,2]
[393325972,1762476632749,-5903.19990056,0.00017844,2]
[393325973,1762476632759,-366.0,0.00017845,2]
[393325974,1762476632769,-4260.77550832,0.00017856,2]
[393325975,1762476632778,-5903.19990056,0.00017856,2]
[393325976,1762476632787,-150.0,0.00017856,2]
[393325977,1762476632797,-150.0,0.00017856,2]
[393325978,1762476632806,-150.0,0.00017856,2]
[393325979,1762476632815,-500.0,0.00017856,2]
[393325980,1762476632824,-500.0,0.00017856,2]
[393325981,1762476632833,-593.0,0.00017856,2]
[393325982,1762476632843,-150.0,0.00017856,2]
[393325983,1762476632852,-200.0,0.00017856,2]
[393325984,1762476632862,-500.0,0.00017856,2]
[393325985,1762476632871,-500.0,0.00017856,2]
[393325986,1762476632880,-150.0,0.00017856,2]
[393325987,1762476632890,-200.0,0.00017856,2]
[393325988,1762476632900,-150.0,0.00017856,2]
[393325989,1762476632913,-500.0,0.00017856,2]
[393325990,1762476632922,-500.0,0.00017856,2]
[393325991,1762476632932,-150.0,0.00017856,2]
[393325992,1762476632941,-500.0,0.00017856,2]
[393325993,1762476632952,-500.0,0.00017856,2]
[393325994,1762476632963,-500.0,0.00017856,2]
[393325995,1762476632972,-500.0,0.00017856,2]
[393325996,1762476632982,-500.0,0.00017856,2]
[393325997,1762476632991,-500.0,0.00017856,2]
[393325998,1762476633000,-446.67735792,0.00017856,2]
[393325999,1762476633010,-4260.77550832,0.00017867,2]
[393326000,1762476633019,-5903.19990056,0.00017867,2]
[393326001,1762476633028,-500.0,0.00017873,2]
[393326002,1762476633038,-500.0,0.00017873,2]
[393326003,1762476633048,-500.0,0.00017873,2]
[393326004,1762476633057,-500.0,0.00017873,2]
[393326005,1762476633067,-3785.882,0.00017873,2]
[393326006,1762476633077,-4260.77550832,0.00017878,2]
[393326007,1762476633086,-108.83081088,0.00017878,2]
[393326008,1762476633491,-5794.36908968,0.00017878,2]
[393326009,1762476633501,-4260.77550832,0.00017889,2]
[393326010,1762476633510,-1610.81693773,0.00017889,2]
[393326011,1762476633521,-4292.38296283,0.00017889,2]
[393326012,1762476633530,-163.31,0.0001789,2]
[393326013,1762476633540,-181.88166078,0.00017897,2]
[393326014,1762476633549,-150.0,0.00017899,2]
[393326015,1762476633558,-500.0,0.00017899,2]
[393326016,1762476633568,-500.0,0.00017899,2]
[393326017,1762476633579,-159.31299469,0.00017899,2]
[393326018,1762476633588,-500.0,0.00017899,2]
[393326019,1762476633597,-500.0,0.00017899,2]
[393326020,1762476633606,-150.0,0.00017899,2]
[393326021,1762476633615,-150.0,0.00017899,2]
[393326022,1762476633624,-150.0,0.00017899,2]
[393326023,1762476633634,-150.0,0.00017899,2]
[393326024,1762476633643,-150.0,0.00017899,2]
[393326025,1762476633654,-500.0,0.00017899,2]
[393326026,1762476633665,-513.53978378,0.00017899,2]
[393326027,1762476633675,-500.0,0.00017899,2]
[393326028,1762476633685,-500.0,0.00017899,2]
[393326029,1762476633694,-500.0,0.00017899,2]
[393326030,1762476633706,-500.0,0.00017899,2]
[393326031,1762476633715,-452.00548777,0.00017899,2]
[393326032,1762476633725,-500.0,0.00017899,2]
[393326033,1762476633736,-500.0,0.00017899,2]
[393326034,1762476633747,-500.0,0.00017899,2]
[393326035,1762476633757,-500.0,0.00017899,2]
[393326036,1762476633767,-2233.67749115,0.000179,2]
[393326037,1762476633777,-2233.67749114,0.000179,2]
[393326038,1762476633787,-5000.0,0.000179,2]
[393326039,1762476633798,-823.36843871,0.000179,2]
[393326040,1762476633810,-2774.295589,0.000179,2]
[393326041,1762476633830,-4460.83994313,0.000179,2]
[393326042,1762476633854,-99670.06329576,0.000179,2]
[393326052,1762476637671,-3597.14258723,0.000179,2]
[393326053,1762476637727,-564.0886184,0.000179,2]
[393326054,1762476637739,-1108.713,0.000179,2]
[393326055,1762476637780,-5490.15073376,0.000179,2]
[393326056,1762476637791,-655.2703397,0.000179,2]
[393326057,1762476637886,-32020.21421943,0.000179,2]
[393326109,1762476639883,-6040.21632456,0.000179,2]
[393326116,1762476639938,-453.46300472,0.000179,2]
[393326119,1762476639949,-262342.1739056,0.000179,2]
[393326121,1762476639960,-241.6117319,0.000179,2]
[393326123,1762476639969,-150.0,0.000179,2]
[393326125,1762476639979,-150.0,0.000179,2]
[393326127,1762476639988,-150.0,0.000179,2]
[393326129,1762476639998,-1800.0,0.000179,6]
[393326131,1762476640008,-4260.77550832,0.000179,2]
[393326133,1762476640017,-3210.41092414,0.000179,2]
[393326135,1762476640027,-5903.19990056,0.000179,2]
[393326137,1762476640036,-274.0,0.00017908,2]
[393326139,1762476640046,-5031.3647,0.0001793,2]
[393326141,1762476640055,-366.0,0.00017954,2]
[393326143,1762476640064,-574.0,0.00017963,2]
[393326145,1762476640073,-1315.0,0.00017963,2]
[393326147,1762476640083,-3423.0,0.00017963,2]
[393326149,1762476640093,-607.0,0.00017963,2]
[393326151,1762476640103,-820.0,0.00017963,2]
[393326153,1762476640112,-1596.0,0.00017963,2]
[393326154,1762476640121,-1188.0,0.00017963,2]
[393326155,1762476640131,-905.0,0.00017963,2]
[393326156,1762476640140,-1273.0,0.00017963,2]
[393326158,1762476640150,-812.0,0.00017963,2]
[393326160,1762476640159,-6693.97,0.00017963,2]
[393326162,1762476640168,-2141.0,0.00017963,2]
[393326164,1762476640178,-6475.0,0.00017963,2]
[393326166,1762476640187,-559.0,0.00017963,2]
[393326168,1762476640197,-427.0,0.00017973,2]
[393326170,1762476640206,-500.0,0.00017973,2]
[393326172,1762476640216,-576.60959597,0.00017973,2]
[393326174,1762476640225,-500.0,0.00017973,2]
[393326176,1762476640235,-500.0,0.00017973,2]
[393326177,1762476640244,-500.0,0.00017973,2]
[393326178,1762476640253,-500.0,0.00017973,2]
[393326179,1762476640262,-426.17665821,0.00017973,2]
[393326180,1762476640271,-500.0,0.00017973,2]
[393326181,1762476640281,-214.81796887,0.00017973,2]
[393326182,1762476640290,-500.0,0.00017973,2]
[393326183,1762476640300,-158.14817295,0.00017973,2]
[393326184,1762476640309,-505.37835354,0.00017973,2]
[393326185,1762476640318,-500.0,0.00017973,2]
[393326186,1762476640327,-500.95181899,0.00017973,2]
[393326187,1762476640336,-500.0,0.00017973,2]
[393326188,1762476640346,-500.0,0.00017973,2]
[393326189,1762476640355,-500.0,0.00017973,2]
[393326190,1762476640364,-500.0,0.00017973,2]
[393326191,1762476640374,-500.0,0.00017973,2]
[393326192,1762476640383,-163.31,0.0001799,2]
[393326193,1762476640392,-163.31,0.0001799,2]
[393326194,1762476640401,-150.0,0.00017993,2]
[393326195,1762476640410,-500.0,0.00017993,2]
[393326196,1762476640419,-500.0,0.00017993,2]
[393326197,1762476640428,-593.0,0.00017993,2]
[393326198,1762476640437,-200.0,0.00017993,2]
[393326199,1762476640446,-500.0,0.00017993,2]
[393326200,1762476640456,-500.0,0.00017993,2]
[393326201,1762476640466,-150.0,0.00017993,2]
[393326202,1762476640476,-500.0,0.00017993,2]
[393326203,1762476640485,-500.0,0.00017993,2]
[393326204,1762476640495,-3598.30758931,0.00017999,2]
[393326205,1762476640504,-494.3167323,0.00017999,3]
[393326206,1762476640514,-356.86085798,0.00017999,2]
[393326207,1762476640523,-599.79455514,0.00017999,2]
[393326208,1762476640533,-500.0,0.00017999,2]
[393326209,1762476640542,-500.0,0.00017999,2]
[393326210,1762476640551,-364.92690345,0.00017999,2]
[393326211,1762476640561,-500.0,0.00017999,2]
[393326212,1762476640571,-1659.0,0.00018,2]
[393326213,1762476640581,-209981.72737718,0.00018,2]
[393326214,1762476640590,-883.88688814,0.00018,2]
[393326215,1762476640599,-600030.03515761,0.00018,2]
[393326216,1762476640611,-1068.42075925,0.00018,2]
[393326217,1762476640622,-3490.44393813,0.00018,2]
[393326218,1762476640633,-1020.5055187,0.00018,2]
[393326219,1762476640644,-1015.55,0.00018,2]
[393326220,1762476640675,-1357.45514549,0.00018,2]
[393326229,1762476642954,-165464.27492686,0.00018,2]
[393326230,1762476643126,-28.08713316,0.00018,2]
[393326233,1762476673553,784.57,0.00013699,2]
[393326240,1762476756475,1482.4293973,0.0003,120]
[393326274,1762477406505,1296.79807456,0.00038703,120]
[393326275,1762477423237,522.30037164,0.00038703,30]
[393326276,1762477606428,163.41,0.00030137,120]
[393326283,1762477739828,1179.29,0.00038704,30]
[393326297,1762477831898,-166.66,0.00015812,2]
[393326298,1762477831908,-166.66,0.00016145,2]
[393326299,1762477831917,-13.6099733,0.00016478,2]
[393326300,1762477831929,-153.0500267,0.00016478,2]
[393326301,1762477831938,-158.6159733,0.00016688,2]
[393326302,1762477831949,-8.4972368,0.00016688,2]
[393326303,1762477831958,-1000.0,0.00016701,2]
[393326304,1762477831967,-200.0,0.00016701,2]
[393326305,1762477831976,-300.0,0.00016788,2]
[393326306,1762477831985,-195.0,0.00016788,2]
[393326307,1762477831994,-166.66,0.00016811,2]
[393326308,1762477832003,-261.58,0.00016874,2]
[393326309,1762477832012,-250.0,0.00017,2]
[393326310,1762477832021,-508.67373169,0.00017,2]
[393326311,1762477832031,-186.64,0.00017066,2]
[393326312,1762477832039,-160.0,0.0001708,2]
[393326313,1762477832050,-1200.0,0.00017084,2]
[393326314,1762477832063,-1200.0,0.00017085,2]
[393326315,1762477832072,-300.0,0.00017085,2]
[393326316,1762477832081,-300.0,0.00017085,2]
[393326317,1762477832090,-550.0,0.00017086,2]
[393326318,1762477832102,-500.0,0.00017087,2]
[393326319,1762477832111,-500.0,0.00017087,2]
[393326320,1762477832120,-500.0,0.00017087,2]
[393326321,1762477832132,-402.69157207,0.00017087,2]
[393326322,1762477832141,-500.0,0.00017087,2]
[393326323,1762477832150,-500.0,0.00017087,2]
[393326324,1762477832159,-500.0,0.00017087,2]
[393326325,1762477832168,-500.0,0.00017087,2]
[393326326,1762477832179,-500.0,0.00017087,2]
[393326327,1762477832188,-500.0,0.00017087,2]
[393326328,1762477832197,-500.0,0.00017087,2]
[393326330,1762477832206,-500.0,0.00017087,2]
[393326332,1762477832215,-500.0,0.00017087,2]
[393326334,1762477832225,-500.0,0.00017087,2]
[393326336,1762477832234,-500.0,0.00017087,2]
[393326338,1762477832243,-468.47383073,0.00017087,2]
[393326340,1762477832253,-500.0,0.00017087,2]
[393326342,1762477832262,-500.0,0.00017087,2]
[393326344,1762477832271,-11340.20245048,0.00017088,2]
[393326346,1762477832283,-2156.27335295,0.00017088,2]
[393326348,1762477832298,-1280.95075832,0.00017088,2]
[393326350,1762477832309,-1360.08995707,0.00017088,2]
[393326353,1762477832321,-740.02519997,0.00017088,2]
[393326355,1762477832335,-1136.25040493,0.00017088,2]
[393326358,1762477832347,-8756.50959255,0.00017088,2]
[393326360,1762477832357,-3150.28435755,0.00017088,2]
[393326362,1762477832368,-522.03688778,0.00017088,2]
[393326364,1762477832378,-823.88404497,0.00017088,2]
[393326366,1762477832389,-3280.00002,0.00017088,2]
[393326370,1762477832404,-19133.32160885,0.00017088,2]
[393326372,1762477832415,-434.26859173,0.00017088,2]
[393326374,1762477832428,-1648.70095954,0.00017088,2]
[393326377,1762477832439,-3337.93745374,0.00017088,2]
[393326379,1762477832450,-487.24168,0.00017088,2]
[393326461,1762477837981,-1103.0726799,0.00017088,2]
[393326462,1762477838038,-250.60600006,0.00017088,2]
[393326463,1762477838050,-3104.89094454,0.00017088,2]
[393326648,1762477839992,-999.0,0.00016779,3]
[393326650,1762477840004,-22384.77305507,0.00017088,2]
[393326652,1762477840013,-500.0,0.000171,2]
[393326654,1762477840022,-171.62243267,0.000171,2]
[393326656,1762477840031,-500.0,0.000171,2]
[393326658,1762477840039,-403.85923226,0.000171,2]
[393326660,1762477840049,-166.66,0.00017144,2]
[393326662,1762477840062,-166.68,0.00017352,2]
[393326664,1762477840072,-250.0,0.00017394,2]
[393326666,1762477840082,-2554.74079995,0.00017394,2]
[393326668,1762477840091,-300.0,0.00017394,2]
[393326670,1762477840101,-166.66,0.00017477,2]
[393326672,1762477840111,-300.0,0.000175,6]
[393326674,1762477840120,-168.0,0.00017552,2]
[393326676,1762477840131,-168.0,0.00017569,2]
[393326678,1762477840140,-500.0,0.00017589,2]
[393326680,1762477840149,-600.0,0.000176,6]
[393326682,1762477840158,-477.87911524,0.00017626,2]
[393326684,1762477840167,-1000.0,0.00017648,2]
[393326686,1762477840179,-168.0,0.00017678,2]
[393326688,1762477840189,-1000.0,0.000177,2]
[393326690,1762477840198,-1000.0,0.000177,6]
[393326692,1762477840210,-5000.0,0.000177,2]
[393326694,1762477840219,-158.32311604,0.000177,2]
[393326696,1762477840228,-441.42062176,0.0001771,2]
[393326698,1762477840238,-221.80400124,0.00017711,2]
[393326700,1762477840247,-590.31999011,0.00017712,2]
[393326702,1762477840257,-893.73840764,0.00017766,2]
[393326704,1762477840266,-323.8215996,0.00017773,2]
[393326706,1762477840275,-329.81666734,0.00017773,2]
[393326708,1762477840285,-500.0,0.00017773,2]
[393326710,1762477840294,-500.0,0.00017773,2]
[393326712,1762477840304,-500.0,0.00017773,2]
[393326714,1762477840313,-500.0,0.00017773,2]
[393326716,1762477840322,-214.81796887,0.00017773,2]
[393326718,1762477840332,-500.0,0.00017773,2]
[393326720,1762477840341,-500.0,0.00017773,2]
[393326722,1762477840351,-426.17665821,0.00017773,2]
[393326724,1762477840360,-500.0,0.00017773,2]
[393326726,1762477840369,-500.0,0.00017773,2]
[393326728,1762477840379,-167.39185676,0.00017773,2]
[393326752,1762477840637,-500.0,0.00017773,2]
[393326753,1762477840647,-500.0,0.00017773,2]
[393326754,1762477840657,-500.0,0.00017773,2]
[393326755,1762477840666,-500.0,0.00017799,2]
[393326756,1762477840676,-500.0,0.00017799,2]
[393326757,1762477840688,-160.29577187,0.00017799,2]
[393326758,1762477840698,-500.0,0.00017799,2]
[393326759,1762477840707,-534.23677572,0.00017799,2]
[393326760,1762477840717,-500.0,0.00017799,2]
[393326761,1762477840726,-500.0,0.00017799,2]
[393326762,1762477840735,-500.0,0.00017799,2]
[393326763,1762477840745,-500.0,0.00017799,2]
[393326764,1762477840754,-529.71,0.00017799,2]
[393326765,1762477840765,-500.0,0.00017799,2]
[393326766,1762477840775,-500.0,0.00017799,2]
[393326767,1762477840784,-500.0,0.00017799,2]
[393326768,1762477840793,-500.0,0.00017799,2]
[393326769,1762477840803,-420000.0,0.000178,2]
[393326770,1762477840813,-1300.0,0.000178,6]
[393326771,1762477840822,-246.0,0.0001781,2]
[393326772,1762477840832,-5683.63227,0.0001782,2]
[393326773,1762477840842,-300.0,0.00017867,2]
[393326774,1762477840851,-599.79455514,0.00017899,2]
[393326775,1762477840860,-151.47124745,0.00017899,2]
[393326776,1762477840869,-150.0,0.00017899,2]
[393326777,1762477840878,-150.0,0.00017899,2]
[393326778,1762477840887,-500.0,0.00017899,2]
[393326779,1762477840896,-500.0,0.00017899,2]
[393326780,1762477840909,-205.70681493,0.00017899,2]
[393326781,1762477840918,-150.0,0.00017899,2]
[393326782,1762477840929,-500.0,0.00017899,2]
[393326783,1762477840946,-150.0,0.00017899,2]
[393326784,1762477840955,-150.0,0.00017899,2]
[393326785,1762477840965,-500.0,0.00017899,2]
[393326786,1762477840975,-568.0,0.00017899,2]
[393326787,1762477840985,-200.0,0.00017899,2]
[393326788,1762477840995,-150.0,0.00017899,2]
[393326789,1762477841005,-150.0,0.00017899,2]
[393326790,1762477841015,-545.08,0.00017899,2]
[393326791,1762477841024,-500.0,0.00017899,2]
[393326792,1762477841034,-500.0,0.00017899,2]
[393326793,1762477841043,-150.0,0.00017899,2]
[393326794,1762477841057,-150.0,0.00017899,2]
[393326795,1762477841067,-150.0,0.00017899,2]
[393326796,1762477841076,-150.0,0.00017899,2]
[393326797,1762477841086,-162.1104191,0.000179,2]
[393326798,1762477841095,-3028.706,0.000179,2]
[393326799,1762477841105,-1600.0,0.000179,6]
[393326800,1762477841115,-3367.43728697,0.000179,2]
[393326801,1762477841126,-166.44233372,0.000179,2]
[393326802,1762477841139,-441.42062174,0.00017953,2]
[393326803,1762477841148,-590.31999005,0.00017955,2]
[393326804,1762477841157,-200.0,0.00017963,2]
[393326805,1762477841166,-150.0,0.00017963,2]
[393326806,1762477841176,-150.0,0.00017963,2]
[393326807,1762477841187,-150.042,0.00017963,2]
[393326808,1762477841197,-211.33,0.00017963,2]
[393326809,1762477841206,-288.312,0.00017963,2]
[393326810,1762477841215,-150.0,0.00017963,2]
[393326811,1762477841225,-150.053,0.00017963,2]
[393326812,1762477841234,-150.0,0.00017963,2]
[393326813,1762477841244,-574.0,0.00017963,2]
[393326814,1762477841254,-1315.0,0.00017963,2]
[393326815,1762477841264,-607.0,0.00017963,2]
[393326816,1762477841274,-3423.0,0.00017963,2]
[393326817,1762477841283,-820.0,0.00017963,2]
[393326818,1762477841292,-1596.0,0.00017963,2]
[393326819,1762477841302,-812.0,0.00017963,2]
[393326820,1762477841311,-1273.0,0.00017963,2]
[393326821,1762477841322,-559.0,0.00017963,2]
[393326822,1762477841331,-6693.97,0.00017963,2]
[393326823,1762477841341,-6475.0,0.00017963,2]
[393326824,1762477841351,-2141.0,0.00017963,2]
[393326825,1762477841360,-5800.0,0.00017965,2]
[393326826,1762477841370,-427.0,0.00017973,2]
[393326827,1762477841379,-500.0,0.00017973,2]
[393326828,1762477841389,-503.54833867,0.00017973,2]
[393326829,1762477841398,-500.0,0.00017973,2]
[393326830,1762477841408,-500.0,0.00017973,2]
[393326831,1762477841417,-576.60959597,0.00017973,2]
[393326832,1762477841427,-500.0,0.00017973,2]
[393326833,1762477841436,-500.0,0.00017973,2]
[393326834,1762477841445,-500.0,0.00017973,2]
[393326835,1762477841455,-500.0,0.00017973,2]
[393326836,1762477841464,-500.0,0.00017973,2]
[393326837,1762477841473,-500.0,0.00017973,2]
[393326838,1762477841482,-500.95181899,0.00017973,2]
[393326839,1762477841492,-500.0,0.00017973,2]
[393326840,1762477841501,-500.0,0.00017973,2]
[393326841,1762477841510,-500.0,0.00017973,2]
[393326842,1762477841519,-500.0,0.00017973,2]
[393326843,1762477841529,-500.0,0.00017973,2]
[393326844,1762477841538,-500.0,0.00017973,2]
[393326845,1762477841547,-500.0,0.00017973,2]
[393326846,1762477841557,-500.0,0.00017973,2]
[393326847,1762477841566,-505.37835354,0.00017973,2]
[393326848,1762477841575,-500.0,0.00017973,2]
[393326849,1762477841585,-500.0,0.00017973,2]
[393326850,1762477841595,-5800.0,0.00017973,2]
[393326851,1762477841604,-5800.0,0.00017982,2]
[393326852,1762477841614,-260.0,0.00017989,2]
[393326853,1762477841622,-5800.0,0.0001799,2]
[393326854,1762477841631,-5800.0,0.00017999,2]
[393326855,1762477841641,-494.3167323,0.00017999,3]
[393326856,1762477841650,-356.86085798,0.00017999,2]
[393326857,1762477841659,-500.0,0.00017999,2]
[393326858,1762477841668,-364.92690345,0.00017999,2]
[393326859,1762477841677,-3598.30758931,0.00017999,2]
[393326860,1762477841693,-1664.0,0.00018,2]
[393326861,1762477841703,-236158.27679399,0.00018,2]
[393326862,1762477841712,-5114.01,0.00018,7]
[393326863,1762477841721,-150.0,0.00018,2]
[393326864,1762477841730,-1438.18038662,0.00018,2]
[393326865,1762477841739,-106914.69436617,0.00018,2]
[393326866,1762477841748,-175.92050299,0.00018,2]
[393326867,1762477841757,-220623.50645073,0.00018,2]
[393326868,1762477841783,-548.84741936,0.00018,2]
[393326869,1762477841809,-11820.30823981,0.00018,2]
[393326870,1762477841819,-21444.65616926,0.00018,2]
[393326883,1762477843141,-0.48172068,0.00018,2]
[393326884,1762477843152,-620.87859331,0.00018,2]
[393326885,1762477843240,-1223.63250399,0.00018,2]
[393326887,1762477846120,-150.0,0.00017899,2]
[393326888,1762477846130,-1188.0,0.00017963,2]
[393326889,1762477846141,-8221.20377829,0.00018,2]
[393326890,1762477846176,-2354.395,0.00018,2]
[393326891,1762477846557,-2983.4383552,0.00018,2]
[393326894,1762478009321,500.0,0.00026768,120]
[393326901,1762478332204,-239.08824351,0.00016882,2]
[393326902,1762478453927,150.0,0.00038704,120]
[393326903,1762478482237,-150.0,0.00016696,2]
[393326904,1762478482268,-53.95013313,0.00016696,2]
[393326905,1762478485236,-225.71304237,0.00016696,2]
[393326906,1762478487476,-20.3368245,0.00016696,2]
[393326907,1762478487502,-195.0,0.00016696,2]
[393326908,1762478487524,-71.21158824,0.00016696,2]
[393326909,1762478497200,-340.98038846,0.00016438,2]
[393326910,1762478502076,-165.356719,0.00016438,2]
[393326911,1762478503656,-195.0,0.00016438,2]
[393326912,1762478505988,-300.0,0.00016438,2]
[393326913,1762478508503,-221.4657106,0.00016438,2]